fUSD/lending_fUSD_20251231
["ID","MTS","AMOUNT","RATE_DAILY","PERIOD"]
[400247623,1767217536773,500.0,0.00010198,2]
[400247624,1767217537282,500.0,0.00010198,2]
[400247625,1767217537344,500.0,0.00010198,2]
[400247626,1767217537395,256.98596696,0.00010198,2]
[400247628,1767217544202,900.57423439,0.00010099,2]
[400247629,1767217544227,99.42576561,0.00010099,2]
[400247630,1767217551910,1843.22617101,0.00010099,2]
[400247633,1767217560441,459.39100632,9.999e-05,2]
[400247634,1767217561224,300.0,0.00010198,2]
[400247635,1767217561479,500.0,0.00043195,120]
[400247636,1767217562481,500.0,0.00010198,2]
[400247637,1767217562541,500.0,0.00010198,2]
[400247638,1767217562594,500.0,0.00010198,2]
[400247639,1767217562652,500.0,0.00010198,2]
[400247640,1767217562720,500.0,0.00010198,2]
[400247641,1767217562785,200.0,0.00010198,2]
[400247642,1767217570077,594.2092946,0.00010099,2]
[400247643,1767217586340,500.0,0.00010198,2]
[400247644,1767217586388,507.76218551,0.00010198,2]
[400247645,1767217618114,500.0,0.00010198,2]
[400247646,1767217621191,300.0,0.00010198,2]
[400247647,1767217632156,2036.5426,0.00010099,2]
[400247648,1767217634962,151.0,0.00010196,2]
[400247649,1767217636001,8.45297695,0.00010196,2]
[400247650,1767217636027,142.54702305,0.00010196,2]
[400247667,1767217673002,175.70407613,0.00010099,2]
[400247668,1767217681528,150.0,0.00010198,2]
[400247669,1767217683275,300.0,0.00010198,2]
[400247670,1767217691680,1200.0,0.00010198,2]
[400247671,1767217700626,500.0,0.00010198,2]
[400247672,1767217700677,500.0,0.00010198,2]
[400247673,1767217700722,500.0,0.00010198,2]
[400247674,1767217700770,628.43822155,0.00010198,2]
[400247675,1767217700828,500.0,0.00010198,2]
[400247676,1767217700939,500.0,0.00010198,2]
[400247677,1767217701038,500.0,0.00010198,2]
[400247678,1767217701081,500.0,0.00010198,2]
[400247679,1767217701147,500.0,0.00010198,2]
[400247680,1767217701208,500.0,0.00010198,2]
[400247681,1767217701251,500.0,0.00010198,2]
[400247682,1767217701307,500.0,0.00010198,2]
[400247683,1767217724853,507.76218551,0.00010198,2]
[400247684,1767217741291,300.0,0.00010198,2]
[400247686,1767217757355,507.76218551,0.00010198,2]
[400247688,1767217789127,502.68456365,0.00010198,2]
[400247689,1767217801141,1200.0,0.00010198,2]
[400247690,1767217801432,300.0,0.00010198,2]
[400247691,1767217820398,-525.81846834,0.00010199,2]
[400247692,1767217821387,502.68456365,0.00010198,2]
[400247693,1767217822874,-300.0,0.00010199,2]
[400247694,1767217824264,-287.91791476,0.00010199,2]
[400247695,1767217826325,-159.44506256,0.00010199,2]
[400247696,1767217827801,-170.85685956,0.00010199,2]
[400247697,1767217829936,-372.5459552,0.00010199,2]
[400247708,1767217832032,-192.50448682,0.00010199,2]
[400247711,1767217832050,-2225.9,0.00010199,2]
[400247713,1767217832062,-1014.02545008,0.00010199,2]
[400247716,1767217832073,-7805.35260329,0.00010199,2]
[400247718,1767217832089,-335.26580545,0.00010199,2]
[400247720,1767217832101,-4851.216895,0.00010199,2]
[400247722,1767217832113,-184508.01159504,0.00010199,2]
[400247725,1767217832125,-7013.18269032,0.00010199,2]
[400247727,1767217832136,-98884.87125127,0.00010199,2]
[400247729,1767217832147,-24428.28253897,0.00010199,2]
[400247731,1767217832158,-284.77163,0.00010199,2]
[400247733,1767217832169,-999.67682255,0.00010199,2]
[400247859,1767217835918,-243.80804689,0.00010199,2]
[400247865,1767217838068,-18076.96787804,0.00010199,2]
[400247870,1767217838126,-722.46490153,0.00010199,2]
[400247871,1767217838139,-3120.63070504,0.00010199,2]
[400247872,1767217838151,-2138.7062971,0.00010199,2]
[400247873,1767217838163,-478.95997779,0.00010199,2]
[400247874,1767217838185,-356.0188694,0.00010199,2]
[400247876,1767217838197,-1086.8797393,0.00010199,2]
[400247877,1767217838242,-624.134,0.00010199,2]
[400247878,1767217838255,-1650.0,0.00010199,2]
[400247879,1767217838299,-593.27536952,0.00010199,2]
[400247880,1767217838311,-778.58817429,0.00010199,2]
[400248032,1767217840141,-446.23228258,0.00010199,2]
[400248120,1767217841213,-1.7e-07,0.00010199,2]
[400248139,1767217841395,-57321.63059446,0.00010199,2]
[400248141,1767217841409,-394.95440656,0.00010199,2]
[400248144,1767217841420,-1588.82115271,0.00010199,2]
[400248146,1767217841431,-474.61882555,0.00010199,2]
[400248148,1767217841442,-448.65345497,0.00010199,2]
[400248150,1767217841456,-959.37255751,0.00010199,2]
[400248153,1767217841467,-2272.64379146,0.00010199,2]
[400248155,1767217841479,-479937.91885195,0.00010199,2]
[400248157,1767217841489,-500.0,0.00010199,2]
[400248159,1767217841498,-194.76532129,0.00010199,2]
[400248161,1767217841508,-234.0,0.00010199,2]
[400248163,1767217841518,-202300.73988631,0.000103,2]
[400248165,1767217841528,-200.0,0.00010397,2]
[400248167,1767217841539,-934.24593411,0.00011,2]
[400248169,1767217841548,-5677.24260847,0.00011099,2]
[400248171,1767217841558,-5677.24260838,0.00011099,2]
[400248173,1767217841567,-8406.09894897,0.00011099,2]
[400248175,1767217841577,-5817.2792159,0.00011099,2]
[400248177,1767217841589,-2588.81973305,0.00011099,2]
[400248179,1767217841599,-255.0,0.00011207,2]
[400248181,1767217841608,-1251.0,0.00011215,2]
[400248183,1767217841618,-420.0,0.00011215,2]
[400248185,1767217841628,-1680.0,0.00011218,2]
[400248187,1767217841637,-250.0,0.00011219,2]
[400248189,1767217841647,-250.0,0.00011219,2]
[400248191,1767217841656,-300.0,0.00011219,2]
[400248193,1767217841666,-8406.09894895,0.0001161,2]
[400248195,1767217841676,-5677.24260838,0.0001161,2]
[400248197,1767217841686,-166.05,0.0001205,2]
[400248199,1767217841696,-433.0,0.00012319,2]
[400248201,1767217841705,-480.0,0.00012335,2]
[400248203,1767217841714,-2351.0,0.00012339,2]
[400248205,1767217841724,-8406.09894895,0.00012366,2]
[400248207,1767217841734,-5677.24260838,0.00012366,2]
[400248209,1767217841744,-200.0,0.0001266,2]
[400248211,1767217841754,-207.4,0.0001266,2]
[400248213,1767217841763,-292.04103114,0.0001266,2]
[400248215,1767217841772,-500.0,0.00012959,2]
[400248217,1767217841782,-8406.09894895,0.00013122,2]
[400248219,1767217841792,-5677.24260838,0.00013122,2]
[400248221,1767217841802,-225.55,0.00013441,2]
[400248224,1767217841824,-363.0,0.00013573,2]
[400248227,1767217841836,-500.0,0.00013698,2]
[400248229,1767217841846,-500.0,0.00013698,2]
[400248231,1767217841858,-1000.0,0.00013699,2]
[400248233,1767217841867,-713.48,0.00013722,2]
[400248235,1767217841877,-548.81,0.00013739,2]
[400248237,1767217841888,-8406.09894895,0.00013877,2]
[400248239,1767217841901,-5677.24260838,0.00013877,2]
[400248241,1767217841911,-8406.09894895,0.00014633,2]
[400248243,1767217841922,-5677.24260838,0.00014633,2]
[400248246,1767217841932,-10471.95,0.00014694,2]
[400248248,1767217841942,-2887.0,0.00014699,2]
[400248249,1767217841951,-766.97,0.00014702,2]
[400248251,1767217841961,-999.0,0.00014802,3]
[400248253,1767217841971,-1000.0,0.00014803,2]
[400248256,1767217841981,-910.5,0.00014815,2]
[400248258,1767217841991,-1124.22,0.00014842,2]
[400248260,1767217842001,-483.34,0.00014842,2]
[400248262,1767217842011,-2288.13,0.00014926,2]
[400248263,1767217842020,-151.1029024,0.00014939,2]
[400248266,1767217842030,-3240.0,0.00014939,2]
[400248268,1767217842040,-280.8,0.00014942,2]
[400248270,1767217842049,-1600.0,0.00014958,2]
[400248272,1767217842059,-150.0,0.00014963,2]
[400248301,1767217842333,-200.0,0.00014998,2]
[400248303,1767217842344,-500.0,0.00015004,2]
[400248305,1767217842354,-151.88196593,0.00015039,2]
[400248307,1767217842364,-201.75,0.00015059,2]
[400248309,1767217842373,-166.67,0.00015145,2]
[400248311,1767217842383,-150.0,0.00015288,2]
[400248313,1767217842394,-8406.09894895,0.00015389,2]
[400248315,1767217842404,-2618.9311887,0.00015389,2]
[400248320,1767217842444,-600.0,0.00015389,2]
[400248323,1767217842462,-801.04957216,0.00015389,2]
[400248325,1767217842475,-1657.26184752,0.00015389,2]
[400248328,1767217842485,-200.0,0.00015488,2]
[400248330,1767217842497,-465.64,0.00015663,2]
[400248332,1767217842507,-151.0,0.0001574,2]
[400248334,1767217842517,-345.98,0.00015743,2]
[400248336,1767217842527,-1280.26680797,0.00015743,2]
[400248338,1767217842543,-47.73319203,0.00015743,2]
[400248340,1767217842553,-338.75686325,0.00015743,2]
[400248343,1767217842565,-1219.4810845,0.00015743,2]
[400248345,1767217842581,-1903.76205225,0.00015743,2]
[400248347,1767217842590,-613.0,0.00015743,2]
[400248349,1767217842600,-215.96794855,0.00015743,2]
[400248352,1767217842612,-500.0,0.00015743,2]
[400248354,1767217842623,-443.58598797,0.00015743,2]
[400248357,1767217842644,-243.44606348,0.00015743,2]
[400248359,1767217842653,-432.0,0.00015743,2]
[400248361,1767217842662,-126.05931184,0.00015743,2]
[400248580,1767217844868,-1137.94068816,0.00015743,2]
[400248582,1767217844878,-150.0,0.00015743,2]
[400248584,1767217844888,-4257.55931184,0.00015743,2]
[400248586,1767217844904,-2284.44068816,0.00015743,2]
[400248588,1767217844914,-2433.0,0.00015743,2]
[400248590,1767217844925,-4812.0,0.00015743,2]
[400248592,1767217844935,-321.02,0.00015876,2]
[400248594,1767217844947,-201.75,0.00015896,2]
[400248596,1767217844956,-166.67,0.00015978,2]
[400248598,1767217844967,-345.98,0.00016017,2]
[400248600,1767217844978,-215.72,0.00016018,2]
[400248602,1767217844988,-999.99,0.00016116,2]
[400248604,1767217844999,-3354.52518207,0.00016116,2]
[400248606,1767217845010,-344.20220149,0.00016116,2]
[400248609,1767217845022,-6301.26261644,0.00016116,2]
[400248611,1767217845032,-971.04510363,0.00016116,2]
[400248613,1767217845044,-206.02489637,0.00016116,2]
[400248615,1767217845053,-3170.88,0.00016116,2]
[400248617,1767217845062,-8406.09894895,0.00016144,2]
[400248619,1767217845072,-5677.24260838,0.00016144,2]
[400248621,1767217845082,-5000.00445648,0.000162,5]
[400248623,1767217845091,-719.0,0.00016221,2]
[400248624,1767217845101,-719.0,0.0001626,2]
[400248626,1767217845111,-345.98,0.00016291,2]
[400248628,1767217845121,-719.0,0.00016312,2]
[400248631,1767217845131,-719.0,0.00016325,2]
[400248633,1767217845141,-831.0,0.0001636,2]
[400248635,1767217845150,-719.0,0.0001637,2]
[400248637,1767217845159,-719.0,0.00016387,2]
[400248639,1767217845169,-719.0,0.00016402,2]
[400248641,1767217845178,-500.0,0.00016438,2]
[400248643,1767217845187,-500.0,0.00016438,2]
[400248645,1767217845196,-500.0,0.00016438,2]
[400248647,1767217845206,-500.0,0.00016438,2]
[400248649,1767217845216,-500.0,0.00016438,2]
[400248651,1767217845225,-500.0,0.00016438,2]
[400248653,1767217845235,-500.0,0.00016438,2]
[400248655,1767217845244,-500.0,0.00016438,2]
[400248657,1767217845254,-500.0,0.00016438,2]
[400248659,1767217845264,-500.0,0.00016438,2]
[400248660,1767217845273,-500.0,0.00016438,2]
[400248662,1767217845283,-500.0,0.00016438,2]
[400248664,1767217845292,-500.0,0.00016438,2]
[400248666,1767217845302,-500.0,0.00016438,2]
[400248668,1767217845311,-500.0,0.00016438,2]
[400248670,1767217845321,-500.0,0.00016438,2]
[400248672,1767217845331,-500.0,0.00016438,2]
[400248674,1767217845341,-500.0,0.00016438,2]
[400248676,1767217845351,-500.0,0.00016438,2]
[400248679,1767217845362,-150.95594351,0.00016438,2]
[400248681,1767217845371,-500.0,0.00016438,2]
[400248683,1767217845380,-500.0,0.00016438,2]
[400248684,1767217845389,-500.0,0.00016438,2]
[400248686,1767217845398,-500.0,0.00016438,2]
[400248688,1767217845408,-500.0,0.00016438,2]
[400248691,1767217845417,-500.0,0.00016438,2]
[400248693,1767217845428,-13786.35,0.00016438,2]
[400248694,1767217845437,-719.0,0.00016447,2]
[400248697,1767217845447,-719.0,0.00016458,2]
[400248699,1767217845456,-719.0,0.00016469,2]
[400248701,1767217845466,-719.0,0.00016474,2]
[400248702,1767217845475,-357.4,0.00016485,2]
[400248705,1767217845485,-719.0,0.00016502,2]
[400248707,1767217845496,-719.0,0.0001651,2]
[400248709,1767217845506,-719.0,0.00016514,2]
[400248711,1767217845516,-719.0,0.00016523,2]
[400248713,1767217845526,-151.88196593,0.00016543,2]
[400248715,1767217845535,-342.06,0.00016548,2]
[400248717,1767217845545,-342.06,0.00016548,2]
[400248718,1767217845555,-342.06,0.00016548,2]
[400248720,1767217845564,-342.06,0.00016548,2]
[400248723,1767217845575,-342.06,0.00016548,2]
[400248725,1767217845586,-342.06,0.00016548,2]
[400248727,1767217845595,-345.98,0.00016565,2]
[400248729,1767217845605,-719.0,0.00016629,2]
[400248731,1767217845615,-719.0,0.00016631,2]
[400248733,1767217845625,-1000.0,0.00016654,2]
[400248735,1767217845636,-324.40408179,0.0001666,2]
[400248737,1767217845647,-719.0,0.00016667,2]
[400248739,1767217845656,-719.0,0.00016672,2]
[400248741,1767217845666,-587.77,0.00016682,2]
[400248743,1767217845675,-719.0,0.00016706,2]
[400248745,1767217845685,-201.75,0.00016733,2]
[400248747,1767217845694,-719.0,0.00016746,2]
[400248749,1767217845703,-719.0,0.00016788,2]
[400248751,1767217845713,-166.67,0.00016812,2]
[400248753,1767217845723,-1600.0,0.00016828,2]
[400248755,1767217845733,-906.13006,0.0001683,2]
[400248757,1767217845743,-906.13006,0.0001683,2]
[400248759,1767217845753,-906.13006,0.0001683,2]
[400248761,1767217845763,-906.13007,0.0001683,2]
[400248763,1767217845772,-906.13006,0.0001683,2]
[400248765,1767217845783,-906.13006,0.0001683,2]
[400248767,1767217845793,-906.13007,0.0001683,2]
[400248769,1767217845802,-346.0,0.00016839,2]
[400248771,1767217845812,-8406.09894895,0.000169,2]
[400248773,1767217845822,-175.71265842,0.000169,2]
[400248775,1767217845832,-5677.24260838,0.000169,2]
[400248777,1767217845841,-500.0,0.00016973,2]
[400248779,1767217845851,-500.0,0.00016973,2]
[400248781,1767217845861,-228.62717376,0.00016973,2]
[400248783,1767217845870,-500.0,0.00016973,2]
[400248786,1767217845881,-500.0,0.00016973,2]
[400248788,1767217845891,-500.0,0.00016973,2]
[400248790,1767217845904,-500.0,0.00016973,2]
[400248792,1767217845914,-204.58187563,0.00016973,2]
[400248794,1767217845924,-500.0,0.00016973,2]
[400248796,1767217845933,-500.0,0.00016973,2]
[400248798,1767217845943,-294.70525475,0.00016986,2]
[400248800,1767217845953,-151.0,0.00016997,2]
[400248802,1767217845963,-507.08821487,0.00016998,2]
[400248804,1767217845973,-500.0,0.00016998,2]
[400248807,1767217845982,-1043.36845007,0.00016999,5]
[400248810,1767217845992,-300.0,0.00016999,2]
[400248813,1767217846002,-300.0,0.00016999,2]
[400248816,1767217846012,-300.0,0.00016999,2]
[400248819,1767217846023,-300.0,0.00016999,2]
[400248821,1767217846033,-300.0,0.00016999,2]
[400248823,1767217846044,-500.0,0.00016999,2]
[400248825,1767217846054,-500.0,0.00016999,2]
[400248827,1767217846065,-500.0,0.00016999,2]
[400248830,1767217846075,-554.68,0.00016999,2]
[400248833,1767217846085,-300.0,0.00016999,2]
[400248835,1767217846094,-287865.96415105,0.00017,2]
[400248837,1767217846107,-424.00898094,0.00017,2]
[400248840,1767217846131,-26220.84080366,0.00017,2]
[400248844,1767217846143,-1186.55161952,0.00017,2]
[400248847,1767217846156,-1821.82014999,0.00017,2]
[400248849,1767217846168,-557.96001026,0.00017,2]
[400248855,1767217846215,-4363.76389369,0.00017,2]
[400248858,1767217846232,-151.0,0.00016911,2]
[400248860,1767217846241,-728.31,0.00017,2]
[400248863,1767217846253,-404.73403491,0.00017,2]
[400248865,1767217846265,-1587.635991,0.00017,2]
[400248867,1767217846276,-521.50544742,0.00017,2]
[400248869,1767217846287,-540.52,0.00017,2]
[400249088,1767217848366,-144.66738785,0.00017,2]
[400249090,1767217848377,-6674.72627226,0.00017,2]
[400249093,1767217848397,-151.0,0.00016911,2]
[400249095,1767217848407,-344425.15786243,0.00017,2]
[400249750,1767217861982,500.0,0.00043195,120]
[400249751,1767217889592,5690.0,0.00015,10]
[400249752,1767217935349,500.0,0.00010099,2]
[400249753,1767217983060,9500.01,0.00010099,2]
[400249754,1767217983096,10000.01,0.00010099,2]
[400249755,1767217983131,10000.01,0.00010099,2]
[400249756,1767217983164,10000.01,0.00010099,2]
[400249757,1767217983196,10000.01,0.00010099,2]
[400249758,1767217983227,10000.01,0.00010099,2]
[400249759,1767217983258,10000.01,0.00010099,2]
[400249760,1767217983289,10000.01,0.00010099,2]
[400249761,1767217983320,10000.01,0.00010099,2]
[400249762,1767217983349,10000.01,0.00010099,2]
[400249763,1767217983947,-969.94297516,0.00010099,2]
[400249764,1767217985902,-207.42834574,0.00010099,2]
[400249765,1767217987321,-643.83658253,0.00010099,2]
[400249766,1767217989390,-517.98211067,0.00010099,2]
[400249767,1767217991990,-820.62990924,0.00010099,2]
[400249768,1767217994686,-246.82755494,0.00010099,2]
[400249769,1767217997280,-207.4,0.00010099,2]
[400249770,1767218000212,-166.93819676,0.00010099,2]
[400249771,1767218002377,-218.45570258,0.00010099,2]
[400249772,1767218003799,-281.54429759,0.00010099,2]
[400249773,1767218006496,-246.9263342,0.00010099,2]
[400249774,1767218008660,-249.82513255,0.00010099,2]
[400249775,1767218010156,-211.84096424,0.00010099,2]
[400249776,1767218011691,-292.19829255,0.00010099,2]
[400249777,1767218014369,-333.9659742,0.00010099,2]
[400249778,1767218017526,-233.2957982,0.00010099,2]
[400249779,1767218020332,-308.87960017,0.00010099,2]
[400249780,1767218022135,-166.66,0.00010099,2]
[400249781,1767218024313,-271.01379213,0.00010099,2]
[400249782,1767218027155,-641.49620787,0.00010099,2]
[400249783,1767218029306,-393.95311366,0.00010099,2]
[400249784,1767218031977,-302.0,0.00010099,2]
[400249785,1767218033515,-329.67079238,0.00010099,2]
[400249786,1767218036883,-299.3087587,0.00010099,2]
[400249787,1767218038424,-200.0,0.00010099,2]
[400249788,1767218074061,214.48585424,0.00010098,2]
[400249789,1767218074111,500.0,0.00010098,2]
[400249790,1767218074163,212.87148825,0.00010098,2]
[400249791,1767218074201,344.54697774,0.00010098,2]
[400249792,1767218074603,297.06891634,0.00010098,2]
[400249793,1767218074719,500.0,0.00010098,2]
[400249794,1767218076774,500.0,0.00010098,2]
[400249795,1767218076840,500.0,0.00010098,2]
[400249796,1767218076900,500.0,0.00010098,2]
[400249797,1767218076956,500.0,0.00010098,2]
[400249798,1767218077009,500.0,0.00010098,2]
[400249799,1767218077055,500.0,0.00010098,2]
[400249800,1767218077116,500.0,0.00010098,2]
[400249801,1767218077161,500.0,0.00010098,2]
[400249802,1767218077207,500.0,0.00010098,2]
[400249803,1767218077263,500.0,0.00010098,2]
[400249804,1767218077316,234.52787731,0.00010098,2]
[400249805,1767218077383,500.0,0.00010098,2]
[400249806,1767218101861,502.68456365,0.00010098,2]
[400249807,1767218133561,502.68456365,0.00010098,2]
[400249808,1767218161696,300.0,0.00010098,2]
[400249809,1767218165292,500.0,0.00043195,120]
[400249810,1767218165540,502.68456365,0.00010098,2]
[400249811,1767218197790,388.45519517,0.00010098,2]
[400249812,1767218197822,114.22936848,0.00010098,2]
[400249813,1767218221285,300.0,0.00010098,2]
[400249814,1767218229133,502.68456365,0.00010098,2]
[400249815,1767218260721,502.68456365,0.00010098,2]
[400249816,1767218292587,300.0,0.00043195,120]
[400249817,1767218292970,502.68456365,0.00010098,2]
[400249818,1767218307274,-11642.0,0.00010099,2]
[400249819,1767218324990,502.68456365,0.00010098,2]
[400249820,1767218341593,300.0,0.00010098,2]
[400249821,1767218350233,203.18785924,0.00043195,120]
[400249822,1767218356935,502.68456365,0.00010098,2]
[400249823,1767218387202,19574.0,0.00043195,120]
[400249824,1767218388538,502.68456365,0.00010098,2]
[400249825,1767218401211,300.0,0.00010098,2]
[400249826,1767218401273,1200.0,0.00010098,2]
[400249827,1767218401316,300.0,0.00010098,2]
[400249828,1767218420555,502.68456365,0.00010098,2]
[400249829,1767218452426,502.68456365,0.00010098,2]
[400249830,1767218461081,500.0,0.00043187,120]
[400249831,1767218461496,300.0,0.00010098,2]
[400249832,1767218473855,151.0,0.00010096,2]
[400249833,1767218474215,151.0,0.00010096,2]
[400249834,1767218494090,2862.30412232,9.897e-05,2]
[400249835,1767218494119,933.60987768,9.897e-05,2]
[400249836,1767218494198,162.475,9.897e-05,2]
[400249837,1767218504076,502.68456365,0.00010098,2]
[400249838,1767218516882,502.68456365,0.00010098,2]
[400249839,1767218521258,300.0,0.00010098,2]
[400249840,1767218548559,502.68456365,0.00010098,2]
[400249841,1767218580326,502.68456365,0.00010098,2]
[400249842,1767218612725,502.68456365,0.00010098,2]
[400249843,1767218644883,502.68456365,0.00010098,2]
[400249844,1767218676786,502.68456365,0.00010098,2]
[400249845,1767218708646,502.68456365,0.00010098,2]
[400249846,1767218740758,502.68456365,0.00010098,2]
[400249847,1767218760736,500.0,0.00043187,120]
[400249848,1767218773148,502.68456365,0.00010098,2]
[400249849,1767218805165,502.68456365,0.00010098,2]
[400249853,1767218837336,502.68456365,0.00010098,2]
[400249868,1767218847178,354.47941879,9.999e-05,2]
[400249871,1767218868942,539.92045725,0.00010098,2]
[400249872,1767218900613,539.92045725,0.00010098,2]
[400249873,1767218932592,539.92045725,0.00010098,2]
[400250004,1767218990410,-346.90442311,0.00010099,2]
[400250005,1767218992104,-211.79362068,0.00010099,2]
[400250006,1767218993718,-279.5317789,0.00010099,2]
[400250007,1767218997703,-165.58825374,0.00010099,2]
[400250008,1767218999264,-184.94993181,0.00010099,2]
[400250009,1767219000853,7523.08464581,9.999e-05,2]
[400250010,1767219000887,10000.01,9.999e-05,2]
[400250011,1767219000916,10000.01,9.999e-05,2]
[400250012,1767219000943,10000.01,9.999e-05,2]
[400250013,1767219000971,10000.01,9.999e-05,2]
[400250014,1767219000998,10000.01,9.999e-05,2]
[400250015,1767219001025,10000.01,9.999e-05,2]
[400250016,1767219001052,10000.01,9.999e-05,2]
[400250017,1767219001081,10000.01,9.999e-05,2]
[400250018,1767219001108,10000.01,9.999e-05,2]
[400250019,1767219001138,123710.969796,9.999e-05,2]
[400250020,1767219001170,778765.85555819,9.999e-05,2]
[400250021,1767219001784,-168.3644,0.00010099,2]
[400250022,1767219001808,-112.66038493,0.00010099,2]
[400250023,1767219003902,-137.33961507,0.00010099,2]
[400250024,1767219003999,55.37866004,0.00010099,2]
[400250025,1767219007918,-167.75983379,0.00010099,2]
[400250026,1767219020888,-9.86150617,0.00010099,2]
[400250027,1767219022048,4104.1239,9.999e-05,2]
[400250039,1767219032167,-281.65687205,0.00011001,2]
[400250042,1767219032178,-300.0,0.00011001,2]
[400250044,1767219032187,-250.0,0.00011109,2]
[400250046,1767219032197,-47.80056407,0.00011109,2]
[400250048,1767219032209,-252.19943593,0.00011109,2]
[400250049,1767219032219,-166.05,0.00012177,2]
[400250050,1767219032230,-211.18,0.00014149,2]
[400250051,1767219032241,-1697.88,0.00015172,2]
[400250052,1767219032251,-300.0,0.00015293,2]
[400250053,1767219032262,-300.0,0.00015293,2]
[400250054,1767219032271,-148.21050118,0.00015293,2]
[400250055,1767219032283,-18.44949882,0.00015293,2]
[400250056,1767219032293,-3573.75050116,0.00015294,2]
[400250057,1767219032305,-664.63807819,0.00015294,2]
[400250058,1767219032354,-2286.90336051,0.00015294,2]
[400250059,1767219032366,-5651.15806014,0.00015294,2]
[400250060,1767219032376,-1000.0,0.0001551,2]
[400250061,1767219032386,-200.0,0.00015557,2]
[400250062,1767219032395,-4106.84048052,0.0001561,2]
[400250063,1767219032412,-2127.37987507,0.0001561,2]
[400250091,1767219038252,-637.16976415,0.00015609,2]
[400250092,1767219038263,-5719.97964441,0.0001561,2]
[400250093,1767219038273,-166.66,0.00015615,2]
[400250094,1767219038283,-166.66,0.00015744,2]
[400250095,1767219038297,-6822.73,0.00015804,2]
[400250096,1767219038307,-166.66,0.00015937,2]
[400250097,1767219038317,-168.0,0.00016049,2]
[400250098,1767219038327,-150.99,0.00016116,2]
[400250099,1767219038338,-166.66,0.00016259,2]
[400250100,1767219038348,-168.0,0.00016272,2]
[400250101,1767219038358,-1328.0,0.0001631,2]
[400250102,1767219038368,-3462.0,0.0001631,2]
[400250103,1767219038379,-613.0,0.0001631,2]
[400250104,1767219038388,-432.0,0.0001631,2]
[400250105,1767219038398,-1264.0,0.0001631,2]
[400250106,1767219038408,-2433.0,0.0001631,2]
[400250107,1767219038418,-4812.0,0.0001631,2]
[400250108,1767219038428,-6542.0,0.0001631,2]
[400250109,1767219038438,-166.66,0.00016393,2]
[400250110,1767219038447,-150.0,0.00016404,2]
[400250111,1767219038457,-150.0,0.00016404,2]
[400250112,1767219038467,-150.0,0.00016404,2]
[400250113,1767219038477,-150.0,0.00016404,2]
[400250116,1767219038486,-150.0,0.00016404,2]
[400250117,1767219038496,-150.0,0.00016404,2]
[400250120,1767219038506,-2503.5,0.00016438,2]
[400250121,1767219038515,-500.0,0.00016438,2]
[400250124,1767219038525,-500.0,0.00016438,2]
[400250126,1767219038535,-405.6617715,0.00016438,2]
[400250128,1767219038545,-151.0,0.0001657,2]
[400250130,1767219038555,-151.0,0.0001657,2]
[400250132,1767219038565,-166.66,0.00016581,2]
[400250134,1767219038575,-162.20204089,0.0001666,2]
[400250136,1767219038585,-151.0,0.00016677,2]
[400250138,1767219038596,-151.0,0.00016677,2]
[400250140,1767219038605,-2503.5,0.00016712,2]
[400250142,1767219038615,-151.0,0.00016791,2]
[400250144,1767219038624,-151.0,0.00016791,2]
[400250146,1767219038634,-151.10290238,0.000168,2]